[Event "Portuguese-ch U10-12 2022"]
[Site "Fatima"]
[Date "2022.04.10"]
[Round "1.1"]
[White "Abreu, Duarte Ferreira"]
[Black "Farias, David Nuno M E"]
[Result "0-1"]
[ECO "B40"]
[WhiteElo "1125"]
[BlackElo "1826"]
[Annotator "NA RC"]
[PlyCount "54"]
[EventDate "2022.04.10"]
[EventType "swiss"]
[EventCountry "POR"]
[SourceTitle "playchess.com"]
[Source "ChessBase"]
[SourceQuality "1"]
[TimeControl "5400+30"]

1. e4 {[%emt 0:00:02]} c5 {[%emt 0:00:06]} 2. Nf3 {[%emt 0:00:06]} e6 {[%emt 0:00:06]} 3. d4 {[%emt 0:00:05]} cxd4 4. Qxd4 {[%emt 0:00:05]} Nc6 {[%emt 0:01:55]} 5. Qd1 {[%emt 0:03:14]} Nf6 {[%emt 0:02:25]} 6. Bg5 {[%emt 0:02:54]} Qa5+ {[%emt 0:03:59]} 7. Bd2 {[%emt 0:04:26]} Qc7 {[%emt 0:00:55]} 8. Bc3 {[%emt 0:01:30]} Nxe4 {[%emt 0:02:26]} 9. Bb5 {[%emt 0:05:34]} Nxc3 {[%emt 0:05:38]} ({Inferior is} 9... Qb6 10. Qe2) 10. Nxc3 {[%emt 0:00:08]} Be7 {[%emt 0:04:03]} 11. O-O {[%emt 0:03:30]} O-O {[%emt 0:02:11]} 12. Ne4 {[%emt 0:03:54]} (12. Rc1 {was necessary.}) 12... d5 {[%emt 0:04:37]} 13. Ng3 {[%emt 0:00:10]} Bd7 {[%emt 0:06:35]} 14. c4 {[%emt 0:04:43]} dxc4 {[%emt 0:08:11]} 15. Bxc4 {[%emt 0:00:17]} Rfd8 {[%emt 0:02:33]} 16. Rc1 {[%emt 0:02:01]} Rac8 {[%emt 0:03:45]} 17. Qe2 {[%emt 0:03:26]} Qf4 {[%emt 0:07:13]} 18. Bd3 {[%emt 0:03:39]} Nd4 {[%emt 0:04:03]} 19. Qe3 {[%emt 0:02:39]} Qxe3 {[%emt 0:02:29]} 20. fxe3 {[%emt 0:00:13]} Nxf3+ {[%emt 0:00:07]} 21. gxf3 {[%emt 0:00:11]} Bc5 {[%emt 0:00:37]} 22. Kf2 {[%emt 0:01:00]} f5 {[%emt 0:01:58]} 23. f4 $19 {[%emt 0:01:41]} Be8 {[%emt 0:06:12]} 24. Rfd1 {[%emt 0:02:35]} Kf8 {[%emt 0:03:02]} 25. Bc4 {[%emt 0:04:53]} Rxd1 {[%emt 0:02:57]} 26. Rxd1 {[%emt 0:00:07]} Bxe3+ {[%emt 0:00:04]} 27. Kxe3 {[%emt 0:00:05]} Rxc4 {[%emt 0:00:05]} 0-1

[Event "Portuguese-ch U10-12 2022"]
[Site "Fatima"]
[Date "2022.04.10"]
[Round "1.2"]
[White "De Sousa Silva, Lucas Jose"]
[Black "Oliveira, Afonso Duarte Q"]
[Result "1-0"]
[ECO "B00"]
[WhiteElo "1656"]
[BlackElo "1101"]
[Annotator "NA RC"]
[PlyCount "103"]
[EventDate "2022.04.10"]
[EventType "swiss"]
[EventCountry "POR"]
[SourceTitle "playchess.com"]
[Source "ChessBase"]
[SourceQuality "1"]
[TimeControl "5400+30"]

1. e4 {[%emt 0:00:03]} b6 {[%emt 0:02:17]} 2. d4 {[%emt 0:04:56]} Bb7 {[%emt 0:01:59]} 3. Nd2 {[%emt 0:01:41]} d5 {[%emt 0:04:16]} 4. e5 {[%emt 0:02:52]} e6 {[%emt 0:03:30]} 5. Bd3 {[%emt 0:02:17]} c5 {[%emt 0:04:37]} 6. c3 {[%emt 0:00:22]} Nc6 {[%emt 0:05:46]} 7. Ne2 {[%emt 0:02:07]} Qh4 {[%emt 0:02:15]} 8. g3 {[%emt 0:02:04]} Qg4 {[%emt 0:02:06]} 9. h3 {[%emt 0:06:05]} Qg5 {[%emt 0:07:06]} 10. Nf3 {[%emt 0:06:06]} Qd8 {[%emt 0:00:32]} 11. Ng5 {[%emt 0:10:51]} cxd4 {[%emt 0:04:22]} 12. Nxf7 {[%emt 0:22:27]} Kxf7 {[%emt 0:00:37]} 13. Nf4 {[%emt 0:00:46]} g6 {[%emt 0:06:58]} 14. Qg4 {[%emt 0:15:47]} Bc8 {[%emt 0:02:03]} 15. Nxg6 {[%emt 0:01:26]} Bg7 {[%emt 0:06:56]} 16. Nxh8+ {[%emt 0:02:32]} Bxh8 {[%emt 0:01:12]} 17. Bxh7 {[%emt 0:08:02]} Nxe5 {[%emt 0:03:35]} 18. Qh5+ {[%emt 0:02:12]} Kf8 {[%emt 0:00:46]} 19. cxd4 {[%emt 0:00:25]} Nf7 {[%emt 0:02:24]} 20. Bxg8 {[%emt 0:03:25]} Kxg8 {[%emt 0:00:15]} 21. Qg6+ {[%emt 0:00:32]} Bg7 {[%emt 0:00:52]} 22. h4 {[%emt 0:00:30]} Qf6 {[%emt 0:06:05]} 23. Qxf6 {[%emt 0:00:07]} Bxf6 {[%emt 0:00:09]} 24. Be3 {[%emt 0:00:06]} Nd6 {[%emt 0:00:44]} 25. g4 {[%emt 0:01:07]} Nc4 {[%emt 0:00:38]} 26. b3 {[%emt 0:00:29]} Nxe3 {[%emt 0:00:23]} 27. fxe3 {[%emt 0:00:06]} e5 {[%emt 0:00:16]} 28. g5 {[%emt 0:00:05]} Bg7 {[%emt 0:00:22]} 29. dxe5 {[%emt 0:02:33]} Bxe5 {[%emt 0:00:10]} 30. Rc1 {[%emt 0:00:21]} Bb7 {[%emt 0:01:17]} 31. h5 {[%emt 0:00:48]} Kh7 {[%emt 0:00:57]} 32. Rf1 {[%emt 0:00:26]} Rg8 {[%emt 0:01:12]} 33. Rf7+ {[%emt 0:01:49]} Rg7 {[%emt 0:01:01]} 34. Rxg7+ {[%emt 0:00:07]} Kxg7 {[%emt 0:00:13]} 35. Kf2 {[%emt 0:00:55]} d4 {[%emt 0:00:56]} 36. Rd1 {[%emt 0:00:15]} dxe3+ {[%emt 0:00:40]} 37. Kxe3 {[%emt 0:00:04]} Bc6 {[%emt 0:00:06]} 38. Rf1 {[%emt 0:00:34]} Be8 {[%emt 0:00:57]} 39. g6 {[%emt 0:00:43]} Bd6 {[%emt 0:01:35]} 40. Kd4 {[%emt 0:01:07]} Bc5+ {[%emt 0:00:18]} 41. Ke5 {[%emt 0:00:37]} Bb4 {[%emt 0:00:41]} 42. Rc1 {[%emt 0:00:30]} Kh6 {[%emt 0:01:27]} 43. Rc7 {[%emt 0:00:22]} Ba3 {[%emt 0:00:41]} 44. Rh7+ {[%emt 0:00:51]} Kg5 {[%emt 0:00:11]} 45. Ke6 {[%emt 0:00:08]} Bxg6 {[%emt 0:00:23]} 46. hxg6 {[%emt 0:00:08]} Kxg6 {[%emt 0:00:40]} 47. Rxa7 {[%emt 0:00:14]} Bc5 {[%emt 0:00:05]} 48. Kd5 {[%emt 0:00:53]} Kf6 {[%emt 0:00:18]} 49. Rb7 {[%emt 0:00:31]} Bg1 {[%emt 0:00:27]} 50. a4 {[%emt 0:00:15]} Be3 {[%emt 0:00:21]} 51. b4 {[%emt 0:00:21]} Bg1 {[%emt 0:00:15]} 52. a5 {[%emt 0:00:18]} 1-0

[Event "Portuguese-ch U10-12 2022"]
[Site "Fatima"]
[Date "2022.04.10"]
[Round "1.3"]
[White "Vicente, Joao Vasco Reis"]
[Black "Silva, Daniel Medeiros Avel"]
[Result "0-1"]
[ECO "B13"]
[WhiteElo "2092"]
[BlackElo "2024"]
[Annotator "RC"]
[PlyCount "107"]
[EventDate "2022.04.10"]
[EventType "swiss"]
[EventCountry "POR"]
[SourceTitle "playchess.com"]
[Source "ChessBase"]
[SourceQuality "1"]
[TimeControl "5400+30"]

1. e4 {[%emt 0:00:01]} c6 {[%emt 0:03:29]} 2. d4 {[%emt 0:01:11]} d5 {[%emt 0:01:17]} 3. exd5 {[%emt 0:00:36]} cxd5 {[%emt 0:00:43]} 4. g3 {[%emt 0:03:03]} Bf5 {[%emt 0:10:29]} 5. Bg2 {[%emt 0:03:01]} e6 {[%emt 0:02:02]} 6. Nf3 {[%emt 0:04:00]} Nf6 {[%emt 0:06:13]} 7. O-O {[%emt 0:09:16]} Be7 {[%emt 0:04:50]} 8. Nbd2 {[%emt 0:07:33]} Nc6 {[%emt 0:03:17]} 9. c4 {[%emt 0:04:41]} O-O {[%emt 0:30:05]} 10. b3 {[%emt 0:09:49]} dxc4 {[%emt 0:11:46]} 11. Nxc4 {[%emt 0:01:04]} Nd5 {[%emt 0:01:54]} 12. Bb2 {[%emt 0:06:41]} Rc8 {[%emt 0:03:38]} 13. Rc1 {[%emt 0:04:55]} Ncb4 {[%emt 0:02:15]} 14. a3 {[%emt 0:10:39]} Nd3 {[%emt 0:02:25]} 15. Rc2 {[%emt 0:06:44]} Nxb2 {[%emt 0:01:29]} 16. Rxb2 {[%emt 0:00:14]} b5 {[%emt 0:01:03]} 17. Ne3 {[%emt 0:02:30]} Nxe3 {[%emt 0:02:14]} 18. fxe3 {[%emt 0:00:23]} Bxa3 {[%emt 0:01:38]} 19. Ra2 {[%emt 0:01:04]} Bd6 {[%emt 0:03:24]} 20. Nh4 {[%emt 0:02:00]} Qg5 {[%emt 0:02:35]} 21. Nxf5 {[%emt 0:02:17]} exf5 {[%emt 0:00:08]} 22. Qd3 {[%emt 0:01:08]} Rfe8 {[%emt 0:02:38]} 23. Rxf5 {[%emt 0:01:35]} Rxe3 {[%emt 0:01:40]} 24. Rxg5 {[%emt 0:00:45]} Rxd3 {[%emt 0:00:08]} 25. Rxb5 {[%emt 0:00:49]} Rxd4 {[%emt 0:00:20]} 26. Rxa7 {[%emt 0:01:13]} Rd1+ {[%emt 0:00:43]} 27. Kf2 {[%emt 0:00:44]} Rd2+ {[%emt 0:00:48]} 28. Kf3 {[%emt 0:00:17]} g6 {[%emt 0:00:42]} 29. Bh3 {[%emt 0:07:00]} Rc3+ {[%emt 0:00:31]} 30. Ke4 {[%emt 0:01:34]} f5+ {[%emt 0:00:13]} 31. Bxf5 {[%emt 0:00:35]} gxf5+ {[%emt 0:00:01]} 32. Rxf5 {[%emt 0:02:12]} Rxh2 {[%emt 0:00:52]} 33. Ra8+ {[%emt 0:03:07]} Kg7 {[%emt 0:00:02]} 34. Rb5 {[%emt 0:02:25]} Rhc2 {[%emt 0:01:20]} 35. Ra6 {[%emt 0:02:20]} Rc6 {[%emt 0:00:29]} 36. Rxc6 {[%emt 0:00:19]} Rxc6 {[%emt 0:00:04]} 37. Kd5 {[%emt 0:00:09]} Ra6 {[%emt 0:00:12]} 38. Rb7+ {[%emt 0:00:42]} Kg6 {[%emt 0:00:13]} 39. b4 {[%emt 0:00:12]} Bxg3 {[%emt 0:00:27]} 40. b5 {[%emt 0:00:40]} Rf6 {[%emt 0:00:09]} 41. Ra7 {[%emt 0:00:53]} Bf2 {[%emt 0:00:09]} 42. Ra6 {[%emt 0:00:29]} Bb6 {[%emt 0:00:37]} 43. Ke5 {[%emt 0:00:38]} Rf5+ {[%emt 0:00:25]} 44. Ke4 {[%emt 0:00:21]} Rxb5 {[%emt 0:00:07]} 45. Kf4 {[%emt 0:00:30]} h5 {[%emt 0:00:16]} 46. Kg3 {[%emt 0:00:13]} Kg5 {[%emt 0:00:20]} 47. Ra8 {[%emt 0:00:29]} Rb3+ {[%emt 0:00:11]} 48. Kg2 {[%emt 0:00:19]} Bc7 {[%emt 0:00:38]} 49. Rg8+ {[%emt 0:00:22]} Kh4 {[%emt 0:00:26]} 50. Rf8 {[%emt 0:00:32]} Bg3 {[%emt 0:00:30]} 51. Rf1 {[%emt 0:00:42]} Kg4 {[%emt 0:00:12]} 52. Rg1 {[%emt 0:00:29]} Rb2+ {[%emt 0:00:15]} 53. Kf1 {[%emt 0:00:16]} Kf3 {[%emt 0:00:09]} 54. Rxg3+ {[%emt 0:00:14]} 0-1

[Event "Portuguese-ch U10-12 2022"]
[Site "Fatima"]
[Date "2022.04.10"]
[Round "1.4"]
[White "Cymbron, Victoria"]
[Black "Sismeiro, Sofia"]
[Result "1-0"]
[ECO "B01"]
[WhiteElo "1494"]
[BlackElo "1090"]
[Annotator "NA RC"]
[PlyCount "77"]
[EventDate "2022.04.10"]
[EventType "swiss"]
[EventCountry "POR"]
[SourceTitle "playchess.com"]
[Source "ChessBase"]
[SourceQuality "1"]
[TimeControl "5400+30"]

1. e4 {[%emt 0:00:02]} d5 {[%emt 0:00:30]} 2. exd5 {[%emt 0:00:07]} Qxd5 {[%emt 0:00:15]} 3. Nc3 {[%emt 0:00:20]} Qa5 {[%emt 0:00:20]} 4. d4 {[%emt 0:00:14]} Nf6 {[%emt 0:00:19]} 5. Bd3 {[%emt 0:01:33]} e6 {[%emt 0:00:48]} 6. Nf3 {[%emt 0:00:30]} c6 {[%emt 0:00:56]} 7. O-O {[%emt 0:00:20]} Bd6 {[%emt 0:00:28]} 8. Bd2 {[%emt 0:04:32]} Qc7 {[%emt 0:01:12]} 9. Qe2 {[%emt 0:01:03]} Nbd7 {[%emt 0:00:40]} 10. Ne4 {[%emt 0:05:01]} Nxe4 {[%emt 0:01:27]} 11. Bxe4 {[%emt 0:00:14]} Nf6 {[%emt 0:00:08]} 12. Bd3 {[%emt 0:00:37]} Bd7 {[%emt 0:00:24]} 13. c3 {[%emt 0:00:12]} h6 {[%emt 0:02:07]} 14. Rae1 {[%emt 0:01:54]} O-O-O {[%emt 0:01:03]} 15. Ne5 {[%emt 0:00:54]} Be8 {[%emt 0:03:40]} 16. a4 {[%emt 0:02:59]} Nd7 {[%emt 0:01:26]} 17. f4 {[%emt 0:09:07]} g5 {[%emt 0:04:56]} 18. Bc2 {[%emt 0:01:01]} f6 {[%emt 0:06:06]} 19. Nc4 {[%emt 0:05:56]} Bf7 {[%emt 0:02:43]} 20. Nxd6+ {[%emt 0:00:54]} Qxd6 {[%emt 0:00:18]} 21. b4 {[%emt 0:02:49]} Rdg8 {[%emt 0:06:00]} 22. b5 {[%emt 0:11:32]} c5 {[%emt 0:02:13]} 23. Qc4 {[%emt 0:05:30]} Kb8 {[%emt 0:05:02]} 24. Be3 {[%emt 0:02:11]} Rc8 {[%emt 0:01:26]} 25. dxc5 {[%emt 0:02:08]} Nxc5 {[%emt 0:02:19]} 26. Rd1 {[%emt 0:00:30]} Qe7 {[%emt 0:01:19]} 27. Qb4 {[%emt 0:04:02]} Qf8 {[%emt 0:02:17]} 28. fxg5 {[%emt 0:03:06]} hxg5 {[%emt 0:00:56]} 29. Rxf6 {[%emt 0:00:37]} Qe7 {[%emt 0:02:54]} 30. Rf2 {[%emt 0:05:53]} Qc7 {[%emt 0:01:42]} 31. g3 {[%emt 0:03:43]} Bh5 {[%emt 0:02:19]} 32. Re1 {[%emt 0:01:31]} g4 {[%emt 0:04:56]} 33. Bd4 {[%emt 0:00:43]} Ka8 {[%emt 0:01:04]} 34. Bxh8 {[%emt 0:00:35]} Rxh8 {[%emt 0:00:06]} 35. Qd4 {[%emt 0:00:43]} Rd8 {[%emt 0:00:26]} 36. Qe5 {[%emt 0:00:14]} Qxe5 {[%emt 0:00:30]} 37. Rxe5 Rd5 {[%emt 0:00:02]} 38. Rf8+ {[%emt 0:00:21]} Rd8 {[%emt 0:00:12]} 39. Rxd8# {[%emt 0:00:05]} 1-0

[Event "Portuguese-ch U10-12 2022"]
[Site "Fatima"]
[Date "2022.04.10"]
[Round "1.5"]
[White "Freitas, Marcos Antonio da Co"]
[Black "Albuquerque, Eduardo Ferreira"]
[Result "0-1"]
[ECO "B18"]
[WhiteElo "1881"]
[BlackElo "1828"]
[Annotator "NA RC"]
[PlyCount "44"]
[EventDate "2022.04.10"]
[EventType "swiss"]
[EventCountry "POR"]
[SourceTitle "playchess.com"]
[Source "ChessBase"]
[SourceQuality "1"]
[TimeControl "5400+30"]

{[%evp 15,44,-36,-10,-42,-40,32767,32767,32767,-49,32767,-36,-36,-42,32767,-49,-43,-35,-62,-45,32767,32767,-301,-213,-228,-242,-247,32767,32767,-306,-1960,-2085]} 1. e4 {[%emt 0:00:02]} c6 {[%emt 0:00:37]} 2. d4 {[%emt 0:00:14]} d5 {[%emt 0:00:23]} 3. Nc3 {[%emt 0:00:20]} dxe4 {[%emt 0:00:31]} 4. Nxe4 {[%emt 0:00:43]} Bf5 {[%emt 0:00:27]} 5. Bd3 {[%emt 0:00:46]} Qxd4 {[%emt 0:11:32]} 6. Nf3 {[%emt 0:01:18]} Qd8 {[%emt 0:04:34]} 7. O-O {[%emt 0:00:32]} e6 {[%emt 0:03:26]} 8. Bf4 {[%emt 0:02:03]} Be7 {[%emt 0:06:30]} (8... Bxe4 $5 9. Bxe4 Qxd1 10. Raxd1 (10. Rfxd1 Nf6 $11) 10... Nf6 $11) 9. Re1 {[%emt 0:00:38]} Bxe4 {[%emt 0:00:57]} 10. Bxe4 {[%emt 0:00:47]} Nf6 {[%emt 0:00:51]} 11. Bd3 {[%emt 0:07:17]} O-O {[%emt 0:00:37]} 12. c3 {[%emt 0:00:21]} Nbd7 {[%emt 0:02:51]} 13. Bc2 {[%emt 0:01:17]} Nd5 {[%emt 0:04:30]} 14. Qd3 {[%emt 0:01:18]} g6 {[%emt 0:02:45]} 15. Bh6 {[%emt 0:02:10]} Re8 $1 {[%emt 0:00:24]} 16. Qd4 {[%emt 0:02:21]} Bf6 {[%emt 0:00:25]} 17. Ne5 {[%emt 0:05:34]} Nxe5 {[%emt 0:01:10]} 18. Rxe5 {[%emt 0:00:28]} Bxe5 {[%emt 0:00:12]} 19. Qxe5 {[%emt 0:01:23]} Qf6 {[%emt 0:00:16]} 20. Qg3 {[%emt 0:05:32]} e5 {[%emt 0:05:33]} 21. c4 {[%emt 0:00:43]} Nf4 {[%emt 0:00:52]} 22. Bg5 $19 {[%emt 0:02:00]} (22. Re1) 22... Ne2+ {[%emt 0:00:11]} 0-1

[Event "Portuguese-ch U10-12 2022"]
[Site "Fatima"]
[Date "2022.04.10"]
[Round "1.6"]
[White "Almeida, Diogo Rodrigues Sant"]
[Black "Pereira, Joao Pedro Santos De"]
[Result "1-0"]
[ECO "C65"]
[WhiteElo "1467"]
[BlackElo "1734"]
[Annotator "NA RC"]
[PlyCount "62"]
[EventDate "2022.04.10"]
[EventType "swiss"]
[EventCountry "POR"]
[SourceTitle "playchess.com"]
[Source "ChessBase"]
[SourceQuality "1"]
[TimeControl "5400+30"]

1. e4 {[%emt 0:00:03]} e5 {[%emt 0:00:14]} 2. Nf3 {[%emt 0:00:22]} Nc6 {[%emt 0:00:15]} 3. Bb5 {[%emt 0:00:13]} Nf6 {[%emt 0:00:46]} 4. O-O {[%emt 0:00:35]} Bc5 {[%emt 0:00:34]} 5. Re1 {[%emt 0:01:18]} d6 {[%emt 0:00:45]} 6. h3 {[%emt 0:01:06]} O-O {[%emt 0:00:24]} 7. c3 {[%emt 0:00:21]} Bd7 {[%emt 0:11:21]} 8. d4 {[%emt 0:01:08]} exd4 {[%emt 0:02:43]} 9. cxd4 {[%emt 0:00:17]} Bb6 {[%emt 0:01:29]} 10. Nc3 {[%emt 0:02:28]} h6 {[%emt 0:04:16]} 11. a3 {[%emt 0:05:22]} Re8 {[%emt 0:02:55]} 12. e5 {[%emt 0:01:24]} Nh7 {[%emt 0:03:30]} 13. Bf4 {[%emt 0:05:36]} Ng5 {[%emt 0:07:46]} 14. Bxc6 {[%emt 0:11:25]} Bxc6 {[%emt 0:00:59]} 15. d5 {[%emt 0:00:23]} dxe5 {[%emt 0:06:14]} 16. Bxg5 {[%emt 0:03:43]} hxg5 {[%emt 0:01:47]} 17. dxc6 {[%emt 0:01:49]} bxc6 {[%emt 0:04:22]} 18. Qxd8 {[%emt 0:00:17]} Raxd8 {[%emt 0:00:39]} 19. Rad1 {[%emt 0:01:02]} Rxd1 {[%emt 0:00:54]} 20. Rxd1 {[%emt 0:00:18]} f6 {[%emt 0:00:16]} 21. Na4 {[%emt 0:00:15]} Re7 {[%emt 0:02:19]} 22. Nxb6 {[%emt 0:00:15]} cxb6 {[%emt 0:00:28]} 23. Kf1 {[%emt 0:03:09]} Kf7 {[%emt 0:00:59]} 24. Ke2 {[%emt 0:00:11]} Ke6 {[%emt 0:00:50]} 25. g4 {[%emt 0:02:10]} Rd7 {[%emt 0:02:39]} 26. Rd4 Rd6 27. Rxd6+ {[%emt 0:14:53]} Kxd6 {[%emt 0:01:36]} 28. Nd2 {[%emt 0:00:00]} g6 {[%emt 0:01:15]} 29. Nc4+ {[%emt 0:00:00]} Kd5 {[%emt 0:15:04]} 30. Na5 {[%emt 0:00:00]} e4 {[%emt 0:01:56]} 31. Nc4 {[%emt 0:00:00]} Ke6 {[%emt 0:00:00]} 1-0

[Event "Portuguese-ch U10-12 2022"]
[Site "Fatima"]
[Date "2022.04.10"]
[Round "1.7"]
[White "Camacho, Francisca Fernandes"]
[Black "Moldovan, Lucas Gabriel"]
[Result "0-1"]
[ECO "A45"]
[WhiteElo "1045"]
[BlackElo "1575"]
[Annotator "NA RC"]
[PlyCount "60"]
[EventDate "2022.04.10"]
[EventType "swiss"]
[EventCountry "POR"]
[SourceTitle "playchess.com"]
[Source "ChessBase"]
[SourceQuality "1"]
[TimeControl "5400+30"]

1. d4 {[%emt 0:00:02]} Nf6 {[%emt 0:00:12]} 2. e3 {[%emt 0:00:14]} g6 {[%emt 0:00:19]} 3. Bd3 {[%emt 0:00:27]} Bg7 {[%emt 0:00:39]} 4. Nf3 {[%emt 0:00:31]} O-O {[%emt 0:00:46]} 5. O-O {[%emt 0:00:18]} d6 {[%emt 0:00:36]} 6. c3 {[%emt 0:02:15]} Nc6 {[%emt 0:01:20]} 7. e4 {[%emt 0:02:11]} e5 {[%emt 0:00:55]} 8. d5 {[%emt 0:01:09]} Ne7 {[%emt 0:01:36]} 9. Bg5 {[%emt 0:02:30]} h6 {[%emt 0:02:10]} 10. Be3 {[%emt 0:01:58]} Ne8 {[%emt 0:03:35]} 11. Nh4 {[%emt 0:03:09]} Nxd5 {[%emt 0:02:27]} 12. exd5 {[%emt 0:03:22]} Qxh4 {[%emt 0:00:10]} 13. g3 {[%emt 0:02:24]} Qe7 {[%emt 0:03:41]} 14. Nd2 {[%emt 0:02:58]} Bh3 {[%emt 0:02:18]} 15. Re1 {[%emt 0:01:27]} Nf6 {[%emt 0:02:15]} 16. c4 {[%emt 0:07:02]} Ng4 {[%emt 0:02:03]} 17. f3 {[%emt 0:04:13]} Nxe3 {[%emt 0:02:25]} 18. Rxe3 {[%emt 0:00:14]} Bd7 {[%emt 0:02:29]} 19. Ne4 {[%emt 0:05:18]} f5 {[%emt 0:00:26]} 20. Nf2 {[%emt 0:02:34]} Qf7 {[%emt 0:04:20]} 21. Re2 {[%emt 0:02:30]} Rae8 {[%emt 0:03:32]} 22. Qb3 {[%emt 0:07:39]} e4 {[%emt 0:04:06]} 23. Bc2 {[%emt 0:04:11]} exf3 {[%emt 0:01:37]} 24. Qxf3 {[%emt 0:01:44]} Rxe2 {[%emt 0:00:36]} 25. Qxe2 {[%emt 0:00:14]} Re8 {[%emt 0:00:07]} 26. Qd2 {[%emt 0:00:48]} Qe7 {[%emt 0:01:59]} 27. Re1 {[%emt 0:03:24]} Qxe1+ {[%emt 0:00:11]} 28. Qxe1 {[%emt 0:00:11]} Rxe1+ {[%emt 0:00:11]} 29. Kg2 {[%emt 0:00:11]} Re2 {[%emt 0:00:16]} 30. Bd3 {[%emt 0:00:25]} Rxb2 {[%emt 0:00:13]} 0-1

[Event "Portuguese-ch U10-12 2022"]
[Site "Fatima"]
[Date "2022.04.10"]
[Round "1.8"]
[White "Zhang, Xin An"]
[Black "De Melo, Samuel Duarte"]
[Result "1-0"]
[ECO "D02"]
[WhiteElo "1487"]
[BlackElo "1382"]
[Annotator "NA RC"]
[PlyCount "59"]
[EventDate "2022.04.10"]
[EventType "swiss"]
[EventCountry "POR"]
[SourceTitle "playchess.com"]
[Source "ChessBase"]
[SourceQuality "1"]
[TimeControl "5400+30"]

1. d4 {[%emt 0:00:01]} d5 {[%emt 0:00:11]} 2. Bf4 {[%emt 0:00:08]} Nf6 {[%emt 0:00:15]} 3. Nf3 {[%emt 0:00:08]} e6 {[%emt 0:00:14]} 4. e3 {[%emt 0:00:06]} Be7 {[%emt 0:00:06]} 5. Nbd2 {[%emt 0:01:04]} O-O {[%emt 0:00:10]} 6. c3 {[%emt 0:00:07]} Nbd7 {[%emt 0:00:44]} 7. Bd3 {[%emt 0:00:43]} b6 {[%emt 0:02:07]} 8. O-O {[%emt 0:01:30]} a5 {[%emt 0:01:33]} 9. e4 {[%emt 0:00:48]} Ba6 {[%emt 0:00:31]} 10. Bxa6 {[%emt 0:05:19]} Rxa6 {[%emt 0:00:06]} 11. Qe2 {[%emt 0:00:33]} Ra7 {[%emt 0:00:33]} 12. h3 {[%emt 0:03:42]} Qa8 {[%emt 0:06:24]} 13. e5 {[%emt 0:02:37]} Ne4 {[%emt 0:02:10]} 14. Nxe4 {[%emt 0:00:54]} dxe4 {[%emt 0:00:10]} 15. Nd2 {[%emt 0:00:01]} e3 {[%emt 0:01:53]} 16. Bxe3 {[%emt 0:01:16]} f6 {[%emt 0:03:34]} 17. Qc4 {[%emt 0:02:17]} Qd5 {[%emt 0:01:24]} 18. Qxd5 {[%emt 0:00:59]} exd5 {[%emt 0:00:35]} 19. exf6 {[%emt 0:07:24]} Bxf6 {[%emt 0:01:53]} 20. Rae1 {[%emt 0:01:12]} Raa8 {[%emt 0:02:19]} 21. Nf3 {[%emt 0:02:09]} a4 {[%emt 0:02:00]} 22. Bg5 {[%emt 0:01:02]} Rab8 {[%emt 0:03:21]} 23. Bxf6 {[%emt 0:00:44]} Nxf6 {[%emt 0:00:46]} 24. Re7 {[%emt 0:04:03]} c5 {[%emt 0:00:23]} 25. Rfe1 {[%emt 0:11:10]} Ne4 {[%emt 0:00:47]} 26. c4 {[%emt 0:00:47]} dxc4 {[%emt 0:00:28]} 27. R1xe4 {[%emt 0:00:11]} cxd4 {[%emt 0:00:55]} 28. Rxd4 {[%emt 0:00:04]} Rbc8 {[%emt 0:00:18]} 29. Rdd7 {[%emt 0:00:05]} g6 {[%emt 0:01:03]} 30. Rg7+ 1-0

[Event "Portuguese-ch U10-12 2022"]
[Site "Fatima"]
[Date "2022.04.11"]
[Round "2.1"]
[White "Farias, David"]
[Black "Fernandes, Martim"]
[Result "1-0"]
[ECO "B48"]
[WhiteElo "1894"]
[BlackElo "1413"]
[Annotator "NA RC"]
[PlyCount "47"]
[EventDate "2022.04.10"]
[EventType "swiss"]
[EventCountry "POR"]
[SourceTitle "playchess.com"]
[Source "ChessBase"]
[SourceQuality "1"]
[TimeControl "5400+30"]

{[%evp 8,47,31,32767,32767,27,35,0,152,114,120,128,130,100,143,87,81,-7,56,49,86,91,137,144,174,147,32767,76,250,337,375,418,534,461,493,734,615,618,1014,946,1013,600]} 1. e4 {[%emt 0:00:01]} c5 {[%emt 0:00:04]} 2. Nf3 {[%emt 0:00:06]} e6 {[%emt 0:00:05]} 3. d4 {[%emt 0:00:09]} cxd4 {[%emt 0:00:05]} 4. Nxd4 {[%emt 0:00:05]} Nc6 {[%emt 0:00:05]} 5. Nc3 {[%emt 0:00:27]} Qc7 {[%emt 0:00:07]} 6. Be3 {[%emt 0:00:40]} Nf6 {[%emt 0:01:32]} 7. g4 {[%emt 0:27:16]} Qa5 $2 {[%emt 0:21:11] [#]} (7... Nxd4 $11 8. Bxd4 Bb4 9. Bxf6 gxf6) 8. Nb3 $1 {[%emt 0:04:22]} Qc7 {[%emt 0:03:12]} 9. g5 {[%emt 0:03:07]} Ng8 {[%emt 0:00:02]} 10. Qd2 {[%emt 0:07:21]} (10. a3 $142) 10... a6 {[%emt 0:05:42]} 11. Na4 {[%emt 0:14:56]} (11. f4 $18) 11... b5 $1 {[%emt 0:06:43]} 12. Nac5 {[%emt 0:00:58]} (12. Nb6 $14 Rb8 13. Nxc8) 12... d6 {[%emt 0:00:59]} (12... Ne5 $11 13. Qe2 h6) 13. Nd3 {[%emt 0:00:05]} Nge7 {[%emt 0:01:18]} 14. O-O-O {[%emt 0:05:04]} Ng6 {[%emt 0:03:26]} (14... a5 $14) 15. f4 {[%emt 0:01:38]} Be7 {[%emt 0:09:29]} 16. h4 {[%emt 0:02:35]} h6 {[%emt 0:03:37]} 17. Qc3 {[%emt 0:08:16]} (17. Bg2 $18 {and White stays clearly on top.}) 17... Kf8 $2 {[%emt 0:09:08]} (17... hxg5 $16 18. fxg5 Bb7) 18. Bg2 {[%emt 0:05:32]} hxg5 {[%emt 0:04:18]} 19. hxg5 {[%emt 0:00:07]} Rxh1 {[%emt 0:00:35]} 20. Rxh1 {[%emt 0:00:02]} Kg8 {[%emt 0:00:30]} 21. f5 {[%emt 0:02:35]} exf5 {[%emt 0:01:34]} 22. exf5 {[%emt 0:00:09]} Nge5 {[%emt 0:02:33]} 23. Nxe5 {[%emt 0:01:24]} dxe5 $18 {[%emt 0:00:17]} 24. Qxc6 {[%emt 0:00:19]} 1-0